[Event "Titled Tuesday Blitz May 24 Early 2022"]
[White "Matinian, Nikita"]
[Black "Rom, Jasper"]
[WhiteFideId "24129100"]
[BlackFideId "2023733"]
[WhiteElo "2422"]
[BlackElo "2233"]
[Result "1/2-1/2"]
[Round "02"]
[TimeControl "180+1"]
[Date "2022.05.25"]
[WhiteClock "0:00:06"]
[BlackClock "0:00:06"]

1. e4 {[%clk 0:03:00]}  e6 {[%clk 0:02:59]} 2. d4 {[%clk 0:03:00]}  d5 {[%clk 0:02:59]} 3. Nc3 {[%clk 0:03:00]}  Nf6 {[%clk 0:02:58]} 4. Bg5 {[%clk 0:02:59]}  Bb4 {[%clk 0:02:58]} 5. exd5 {[%clk 0:02:59]}  exd5 {[%clk 0:02:57]} 6. Bd3 {[%clk 0:02:59]}  Nc6 {[%clk 0:02:45]} 7. Qe2+ {[%clk 0:02:57]}  Be6 {[%clk 0:02:41]} 8. Nf3 {[%clk 0:02:55]}  O-O {[%clk 0:02:39]} 9. h3 {[%clk 0:02:47]}  Re8 {[%clk 0:02:38]} 10. Be3 {[%clk 0:02:45]}  Ne4 {[%clk 0:02:32]} 11. O-O {[%clk 0:02:40]}  Bxc3 {[%clk 0:02:20]} 12. bxc3 {[%clk 0:02:41]}  Nxc3 {[%clk 0:02:21]} 13. Qe1 {[%clk 0:02:40]}  Ne4 {[%clk 0:02:19]} 14. Rb1 {[%clk 0:02:39]}  Rb8 {[%clk 0:02:17]} 15. Ne5 {[%clk 0:02:29]}  f6 {[%clk 0:01:27]} 16. Nxc6 {[%clk 0:02:23]}  bxc6 {[%clk 0:01:26]} 17. Qa5 {[%clk 0:02:22]}  Rb6 {[%clk 0:01:15]} 18. Qxa7 {[%clk 0:02:20]}  Qb8 {[%clk 0:01:15]} 19. Qxb8 {[%clk 0:02:14]}  Rexb8 {[%clk 0:01:16]} 20. Rxb6 {[%clk 0:02:10]}  cxb6 {[%clk 0:01:14]} 21. f3 {[%clk 0:02:07]}  Nc3 {[%clk 0:01:10]} 22. a3 {[%clk 0:02:06]}  Ra8 {[%clk 0:01:00]} 23. Ra1 {[%clk 0:02:04]}  b5 {[%clk 0:00:59]} 24. Bd2 {[%clk 0:02:04]}  Na4 {[%clk 0:00:56]} 25. Bb4 {[%clk 0:02:02]}  Nb2 {[%clk 0:00:52]} 26. g4 {[%clk 0:02:02]}  Kf7 {[%clk 0:00:45]} 27. Kf2 {[%clk 0:02:02]}  h5 {[%clk 0:00:46]} 28. Re1 {[%clk 0:01:50]}  Nxd3+ {[%clk 0:00:42]} 29. cxd3 {[%clk 0:01:51]}  hxg4 {[%clk 0:00:43]} 30. fxg4 {[%clk 0:01:52]}  Rh8 {[%clk 0:00:42]} 31. Kg3 {[%clk 0:01:52]}  g5 {[%clk 0:00:39]} 32. Rc1 {[%clk 0:01:51]}  Bd7 {[%clk 0:00:39]} 33. Rf1 {[%clk 0:01:42]}  Re8 {[%clk 0:00:37]} 34. Kf2 {[%clk 0:01:41]}  Rh8 {[%clk 0:00:36]} 35. Kg3 {[%clk 0:01:38]}  Re8 {[%clk 0:00:35]} 36. Kf3 {[%clk 0:01:30]}  Rh8 {[%clk 0:00:34]} 37. Rh1 {[%clk 0:01:31]}  f5 {[%clk 0:00:33]} 38. Re1 {[%clk 0:01:14]}  Re8 {[%clk 0:00:29]} 39. Rf1 {[%clk 0:00:57]}  Rh8 {[%clk 0:00:26]} 40. Kg2 {[%clk 0:00:54]}  Kg6 {[%clk 0:00:21]} 41. Bd6 {[%clk 0:00:40]}  f4 {[%clk 0:00:12]} 42. Re1 {[%clk 0:00:36]}  Re8 {[%clk 0:00:12]} 43. Re5 {[%clk 0:00:20]}  Rxe5 {[%clk 0:00:10]} 44. dxe5 {[%clk 0:00:21]}  Be6 {[%clk 0:00:06]} 45. d4 {[%clk 0:00:22]}  Bd7 {[%clk 0:00:06]} 46. Kf3 {[%clk 0:00:21]}  Be6 {[%clk 0:00:06]} 47. Bb4 {[%clk 0:00:22]}  Bd7 {[%clk 0:00:05]} 48. Be1 {[%clk 0:00:22]}  Be6 {[%clk 0:00:06]} 49. h4 {[%clk 0:00:23]}  Bd7 {[%clk 0:00:05]} 50. Bf2 {[%clk 0:00:18]}  Be6 {[%clk 0:00:04]} 51. h5+ {[%clk 0:00:17]}  Kh6 {[%clk 0:00:04]} 52. Be1 {[%clk 0:00:17]}  Bd7 {[%clk 0:00:04]} 53. Ba5 {[%clk 0:00:16]}  Be6 {[%clk 0:00:05]} 54. Bb4 {[%clk 0:00:16]}  Bd7 {[%clk 0:00:05]} 55. Bf8+ {[%clk 0:00:17]}  Kh7 {[%clk 0:00:05]} 56. Be7 {[%clk 0:00:17]}  Kh6 {[%clk 0:00:04]} 57. Bb4 {[%clk 0:00:16]}  Be6 {[%clk 0:00:05]} 58. Bd2 {[%clk 0:00:17]}  Bd7 {[%clk 0:00:04]} 59. Bc1 {[%clk 0:00:13]}  Be6 {[%clk 0:00:05]} 60. Bd2 {[%clk 0:00:09]}  Bd7 {[%clk 0:00:05]} 61. Ba5 {[%clk 0:00:09]}  Be6 {[%clk 0:00:05]} 62. Bd8 {[%clk 0:00:10]}  Bd7 {[%clk 0:00:05]} 63. Be7 {[%clk 0:00:11]}  Be6 {[%clk 0:00:06]} 64. Bf8+ {[%clk 0:00:11]}  Kh7 {[%clk 0:00:06]} 65. h6 {[%clk 0:00:09]}  Bd7 {[%clk 0:00:05]} 66. Bg7 {[%clk 0:00:09]}  Kg6 {[%clk 0:00:05]} 67. Bf8 {[%clk 0:00:06]}  Be6 {[%clk 0:00:05]} 68. Bg7 {[%clk 0:00:06]}  Bd7 {[%clk 0:00:05]} 69. Bf8 {[%clk 0:00:06]}  Be6 {[%clk 0:00:06]} 70. Bg7 {[%clk 0:00:06]}  Bd7 {[%clk 0:00:06]} 1/2-1/2


[Site "https://www.chess.com"]

[Event "Titled Tuesday Blitz May 24 Early 2022"]
[White "Matlakov, Maxim"]
[Black "Taboas Rodriguez, Daniel"]
[WhiteFideId "4168003"]
[BlackFideId "2208466"]
[WhiteElo "2669"]
[BlackElo "2429"]
[Result "1-0"]
[Round "02"]
[TimeControl "180+1"]
[Date "2022.05.24"]
[WhiteClock "0:01:02"]
[BlackClock "0:00:36"]

1. d4 {[%clk 0:03:00]}  Nf6 {[%clk 0:02:59]} 2. c4 {[%clk 0:03:00]}  g6 {[%clk 0:03:00]} 3. g3 {[%clk 0:02:56]}  Bg7 {[%clk 0:03:00]} 4. Bg2 {[%clk 0:02:56]}  O-O {[%clk 0:03:00]} 5. Nc3 {[%clk 0:02:56]}  d6 {[%clk 0:02:57]} 6. Nf3 {[%clk 0:02:56]}  Nbd7 {[%clk 0:02:57]} 7. O-O {[%clk 0:02:54]}  e5 {[%clk 0:02:57]} 8. e4 {[%clk 0:02:52]}  c6 {[%clk 0:02:57]} 9. h3 {[%clk 0:02:48]}  a5 {[%clk 0:02:57]} 10. Re1 {[%clk 0:02:47]}  Re8 {[%clk 0:02:50]} 11. Be3 {[%clk 0:02:46]}  exd4 {[%clk 0:02:49]} 12. Nxd4 {[%clk 0:02:45]}  Nc5 {[%clk 0:02:50]} 13. Qc2 {[%clk 0:02:44]}  a4 {[%clk 0:02:50]} 14. Rad1 {[%clk 0:02:43]}  Qa5 {[%clk 0:02:50]} 15. Bf4 {[%clk 0:02:36]}  Ne6 {[%clk 0:02:38]} 16. Nxe6 {[%clk 0:02:28]}  Bxe6 {[%clk 0:02:39]} 17. Bxd6 {[%clk 0:02:22]}  Bxc4 {[%clk 0:02:37]} 18. e5 {[%clk 0:02:22]}  Nd5 {[%clk 0:02:30]} 19. Nxd5 {[%clk 0:01:49]}  Bxd5 {[%clk 0:02:31]} 20. Bxd5 {[%clk 0:01:48]}  cxd5 {[%clk 0:02:32]} 21. Qd3 {[%clk 0:01:44]}  Rad8 {[%clk 0:02:28]} 22. Re2 {[%clk 0:01:32]}  d4 {[%clk 0:02:05]} 23. f4 {[%clk 0:01:16]}  Bf8 {[%clk 0:01:46]} 24. Bxf8 {[%clk 0:01:08]}  Rxf8 {[%clk 0:01:47]} 25. Re4 {[%clk 0:01:06]}  Rc8 {[%clk 0:00:36]} 26. Rxd4 {[%clk 0:01:03]}  Qb4 {[%clk 0:00:36]} 27. Rxb4 {[%clk 0:01:02]} 1-0


[Site "https://www.chess.com"]

[Event "Titled Tuesday Blitz May 24 Early 2022"]
[White "Melikyan, Gnel"]
[Black "Kvaloy, Aksel Bu"]
[WhiteFideId "54109990"]
[BlackFideId "1528815"]
[WhiteElo "1772"]
[BlackElo "2053"]
[Result "1-0"]
[Round "02"]
[TimeControl "180+1"]
[Date "2022.05.25"]
[WhiteClock "0:01:04"]
[BlackClock "0:00:14"]

1. e4 {[%clk 0:02:54]}  e5 {[%clk 0:02:58]} 2. Nf3 {[%clk 0:02:54]}  Nc6 {[%clk 0:02:54]} 3. d4 {[%clk 0:02:53]}  exd4 {[%clk 0:02:52]} 4. Nxd4 {[%clk 0:02:54]}  Nf6 {[%clk 0:02:53]} 5. Nxc6 {[%clk 0:02:54]}  bxc6 {[%clk 0:02:52]} 6. e5 {[%clk 0:02:54]}  Qe7 {[%clk 0:02:52]} 7. Qe2 {[%clk 0:02:55]}  Nd5 {[%clk 0:02:53]} 8. c4 {[%clk 0:02:56]}  Ba6 {[%clk 0:02:53]} 9. b3 {[%clk 0:02:57]}  g6 {[%clk 0:02:51]} 10. g3 {[%clk 0:02:57]}  Bg7 {[%clk 0:02:48]} 11. Bb2 {[%clk 0:02:58]}  O-O {[%clk 0:02:45]} 12. Bg2 {[%clk 0:02:59]}  d6 {[%clk 0:02:37]} 13. O-O {[%clk 0:02:53]}  dxe5 {[%clk 0:02:34]} 14. Nd2 {[%clk 0:02:50]}  Rfe8 {[%clk 0:02:10]} 15. Rfe1 {[%clk 0:02:26]}  Rad8 {[%clk 0:02:03]} 16. Nf1 {[%clk 0:02:02]}  Nb4 {[%clk 0:01:57]} 17. Ba3 {[%clk 0:02:01]}  c5 {[%clk 0:01:57]} 18. Ne3 {[%clk 0:01:58]}  e4 {[%clk 0:01:45]} 19. Rad1 {[%clk 0:01:57]}  Nd3 {[%clk 0:01:44]} 20. Nd5 {[%clk 0:01:52]}  Qd6 {[%clk 0:01:25]} 21. Rxd3 {[%clk 0:01:35]}  exd3 {[%clk 0:01:22]} 22. Qxe8+ {[%clk 0:01:31]}  Rxe8 {[%clk 0:01:22]} 23. Rxe8+ {[%clk 0:01:32]}  Bf8 {[%clk 0:01:23]} 24. Bb2 {[%clk 0:01:26]}  d2 {[%clk 0:01:14]} 25. Bf3 {[%clk 0:01:25]}  f5 {[%clk 0:01:08]} 26. Be5 {[%clk 0:01:13]}  Qc6 {[%clk 0:00:30]} 27. Ne7+ {[%clk 0:01:06]}  Kf7 {[%clk 0:00:27]} 28. Nxc6 {[%clk 0:01:06]}  Kxe8 {[%clk 0:00:27]} 29. Kf1 {[%clk 0:01:03]}  Bb7 {[%clk 0:00:23]} 30. Ke2 {[%clk 0:01:03]}  Kd7 {[%clk 0:00:13]} 31. Nb8+ {[%clk 0:01:03]}  Kc8 {[%clk 0:00:14]} 32. Bxb7+ {[%clk 0:01:04]}  Kxb7 {[%clk 0:00:15]} 33. Nd7 {[%clk 0:01:04]}  Bd6 {[%clk 0:00:14]} 1-0


[Site "https://www.chess.com"]

[Event "Titled Tuesday Blitz May 24 Early 2022"]
[White "Molina, Roberto Junio Brito"]
[Black "Vovk, Orest"]
[WhiteFideId "2109450"]
[BlackFideId "14113490"]
[WhiteElo "2432"]
[BlackElo "2203"]
[Result "1-0"]
[Round "02"]
[TimeControl "180+1"]
[Date "2022.05.24"]
[WhiteClock "0:00:40"]
[BlackClock "0:00:17"]

1. d4 {[%clk 0:03:00]}  h6 {[%clk 0:02:57]} 2. e4 {[%clk 0:02:57]}  g5 {[%clk 0:02:55]} 3. h4 {[%clk 0:02:57]}  g4 {[%clk 0:02:55]} 4. Nc3 {[%clk 0:02:52]}  Bg7 {[%clk 0:02:55]} 5. Be3 {[%clk 0:02:52]}  d6 {[%clk 0:02:54]} 6. Qd2 {[%clk 0:02:48]}  c6 {[%clk 0:02:53]} 7. O-O-O {[%clk 0:02:48]}  Qa5 {[%clk 0:02:52]} 8. Kb1 {[%clk 0:02:46]}  Be6 {[%clk 0:02:49]} 9. Nge2 {[%clk 0:02:46]}  b5 {[%clk 0:02:47]} 10. Nf4 {[%clk 0:02:42]}  b4 {[%clk 0:02:30]} 11. Nxe6 {[%clk 0:02:41]}  fxe6 {[%clk 0:02:31]} 12. Ne2 {[%clk 0:02:40]}  Nf6 {[%clk 0:02:26]} 13. f3 {[%clk 0:02:39]}  Nbd7 {[%clk 0:02:23]} 14. Nf4 {[%clk 0:02:37]}  Nf8 {[%clk 0:02:17]} 15. Bd3 {[%clk 0:02:28]}  Rb8 {[%clk 0:02:02]} 16. Rhe1 {[%clk 0:02:25]}  gxf3 {[%clk 0:01:53]} 17. gxf3 {[%clk 0:02:25]}  Nh5 {[%clk 0:01:53]} 18. e5 {[%clk 0:01:58]}  Nxf4 {[%clk 0:01:49]} 19. Bxf4 {[%clk 0:01:58]}  d5 {[%clk 0:01:21]} 20. Rg1 {[%clk 0:01:53]}  Rg8 {[%clk 0:01:19]} 21. Rg2 {[%clk 0:01:20]}  c5 {[%clk 0:01:11]} 22. dxc5 {[%clk 0:01:20]}  Qxc5 {[%clk 0:01:11]} 23. Rdg1 {[%clk 0:01:16]}  Kf7 {[%clk 0:01:05]} 24. Qe2 {[%clk 0:00:58]}  Qd4 {[%clk 0:00:55]} 25. Bc1 {[%clk 0:00:49]}  Nd7 {[%clk 0:00:44]} 26. f4 {[%clk 0:00:48]}  Bxe5 {[%clk 0:00:23]} 27. Qh5+ {[%clk 0:00:43]}  Kf6 {[%clk 0:00:19]} 28. Rg6+ {[%clk 0:00:41]}  Kf7 {[%clk 0:00:17]} 29. Rxg8+ {[%clk 0:00:40]} 1-0


[Site "https://www.chess.com"]

[Event "Titled Tuesday Blitz May 24 Early 2022"]
[White "Nogerbek, Kazybek"]
[Black "Poltorak, Sebastian"]
[WhiteFideId "13710427"]
[BlackFideId "1199498"]
[WhiteElo "2441"]
[BlackElo "2066"]
[Result "1-0"]
[Round "02"]
[TimeControl "180+1"]
[Date "2022.05.24"]
[WhiteClock "0:01:40"]
[BlackClock "0:00:14"]

1. Nf3 {[%clk 0:03:00]}  Nf6 {[%clk 0:02:58]} 2. c4 {[%clk 0:03:00]}  g6 {[%clk 0:02:57]} 3. g3 {[%clk 0:03:00]}  Bg7 {[%clk 0:02:58]} 4. Bg2 {[%clk 0:03:01]}  O-O {[%clk 0:02:58]} 5. O-O {[%clk 0:03:01]}  d5 {[%clk 0:02:58]} 6. cxd5 {[%clk 0:03:02]}  Nxd5 {[%clk 0:02:59]} 7. d4 {[%clk 0:03:02]}  c5 {[%clk 0:02:59]} 8. e4 {[%clk 0:03:00]}  Nf6 {[%clk 0:02:59]} 9. Nc3 {[%clk 0:03:00]}  cxd4 {[%clk 0:02:58]} 10. Nxd4 {[%clk 0:02:52]}  Nc6 {[%clk 0:02:57]} 11. Nxc6 {[%clk 0:02:51]}  bxc6 {[%clk 0:02:58]} 12. Qa4 {[%clk 0:02:50]}  Bb7 {[%clk 0:02:45]} 13. Be3 {[%clk 0:02:48]}  Qc7 {[%clk 0:02:32]} 14. Rac1 {[%clk 0:02:47]}  Rfd8 {[%clk 0:02:30]} 15. h3 {[%clk 0:02:45]}  a5 {[%clk 0:02:18]} 16. Rfe1 {[%clk 0:02:42]}  e6 {[%clk 0:02:01]} 17. Qb3 {[%clk 0:02:32]}  Rdb8 {[%clk 0:01:55]} 18. Qc2 {[%clk 0:02:28]}  Ba6 {[%clk 0:01:53]} 19. e5 {[%clk 0:02:26]}  Nd7 {[%clk 0:01:47]} 20. f4 {[%clk 0:02:22]}  Qb7 {[%clk 0:01:41]} 21. Na4 {[%clk 0:02:20]}  Bb5 {[%clk 0:01:37]} 22. Bxc6 {[%clk 0:02:20]}  Bxc6 {[%clk 0:01:28]} 23. Qxc6 {[%clk 0:02:21]}  Qxc6 {[%clk 0:01:18]} 24. Rxc6 {[%clk 0:02:22]}  Rb4 {[%clk 0:01:18]} 25. b3 {[%clk 0:02:20]}  Nf8 {[%clk 0:01:00]} 26. Bc5 {[%clk 0:02:14]}  Rb7 {[%clk 0:00:56]} 27. h4 {[%clk 0:02:14]}  Rd8 {[%clk 0:00:51]} 28. Bd6 {[%clk 0:02:13]}  Nd7 {[%clk 0:00:46]} 29. Rec1 {[%clk 0:02:13]}  Bf8 {[%clk 0:00:41]} 30. Rc8 {[%clk 0:02:12]}  Rxc8 {[%clk 0:00:41]} 31. Rxc8 {[%clk 0:02:12]}  Kg7 {[%clk 0:00:37]} 32. Nc5 {[%clk 0:02:13]}  Ra7 {[%clk 0:00:32]} 33. Ne4 {[%clk 0:01:51]}  Bxd6 {[%clk 0:00:31]} 34. exd6 {[%clk 0:01:48]}  Nf6 {[%clk 0:00:22]} 35. Rc7 {[%clk 0:01:43]}  Ra8 {[%clk 0:00:21]} 36. Ng5 {[%clk 0:01:42]}  h6 {[%clk 0:00:16]} 37. Rxf7+ {[%clk 0:01:41]}  Kg8 {[%clk 0:00:16]} 38. Rxf6 {[%clk 0:01:42]}  hxg5 {[%clk 0:00:16]} 39. Rxg6+ {[%clk 0:01:42]}  Kf7 {[%clk 0:00:17]} 40. Rxg5 {[%clk 0:01:42]}  a4 {[%clk 0:00:17]} 41. h5 {[%clk 0:01:39]}  a3 {[%clk 0:00:16]} 42. h6 {[%clk 0:01:39]}  Rh8 {[%clk 0:00:14]} 43. d7 {[%clk 0:01:39]}  Ke7 {[%clk 0:00:13]} 44. Rg7+ {[%clk 0:01:40]}  Kd8 {[%clk 0:00:14]} 45. h7 {[%clk 0:01:40]}  Kc7 {[%clk 0:00:14]} 46. d8=Q+ {[%clk 0:01:40]} 1-0


[Site "https://www.chess.com"]

[Event "Titled Tuesday Blitz May 24 Early 2022"]
[White "Oparin, Grigoriy"]
[Black "Skuhala, Barbara"]
[WhiteFideId "24125890"]
[BlackFideId "14605465"]
[WhiteElo "2665"]
[BlackElo "2155"]
[Result "1-0"]
[Round "02"]
[TimeControl "180+1"]
[Date "2022.05.25"]
[WhiteClock "0:01:36"]
[BlackClock "0:01:28"]

1. c4 {[%clk 0:03:00]}  e5 {[%clk 0:02:57]} 2. Nc3 {[%clk 0:03:01]}  Nf6 {[%clk 0:02:57]} 3. Nf3 {[%clk 0:03:01]}  Nc6 {[%clk 0:02:57]} 4. e4 {[%clk 0:03:02]}  Bb4 {[%clk 0:02:56]} 5. d3 {[%clk 0:03:02]}  O-O {[%clk 0:02:55]} 6. a3 {[%clk 0:03:02]}  Bxc3+ {[%clk 0:02:55]} 7. bxc3 {[%clk 0:03:02]}  d6 {[%clk 0:02:54]} 8. g3 {[%clk 0:03:03]}  Ne7 {[%clk 0:02:55]} 9. Bg2 {[%clk 0:03:03]}  Ng6 {[%clk 0:02:53]} 10. O-O {[%clk 0:03:03]}  Be6 {[%clk 0:02:52]} 11. h3 {[%clk 0:03:00]}  Qd7 {[%clk 0:02:52]} 12. Kh2 {[%clk 0:03:01]}  h6 {[%clk 0:02:51]} 13. Be3 {[%clk 0:02:59]}  Nh7 {[%clk 0:02:51]} 14. c5 {[%clk 0:02:53]}  f5 {[%clk 0:02:50]} 15. exf5 {[%clk 0:02:53]}  Bxf5 {[%clk 0:02:50]} 16. cxd6 {[%clk 0:02:52]}  cxd6 {[%clk 0:02:49]} 17. d4 {[%clk 0:02:45]}  e4 {[%clk 0:02:48]} 18. Nd2 {[%clk 0:02:45]}  d5 {[%clk 0:02:48]} 19. c4 {[%clk 0:02:46]}  Kh8 {[%clk 0:02:43]} 20. cxd5 {[%clk 0:02:41]}  Qxd5 {[%clk 0:02:42]} 21. g4 {[%clk 0:02:35]}  Qd6+ {[%clk 0:02:24]} 22. Kh1 {[%clk 0:02:35]}  Bd7 {[%clk 0:02:19]} 23. Nxe4 {[%clk 0:02:34]}  Qe7 {[%clk 0:02:16]} 24. d5 {[%clk 0:02:27]}  Nh4 {[%clk 0:02:14]} 25. Bc5 {[%clk 0:02:26]}  Qf7 {[%clk 0:02:12]} 26. Bxf8 {[%clk 0:02:22]}  Nxg2 {[%clk 0:02:12]} 27. Kxg2 {[%clk 0:02:22]}  Rxf8 {[%clk 0:02:11]} 28. f3 {[%clk 0:02:19]}  h5 {[%clk 0:02:08]} 29. Qd2 {[%clk 0:02:05]}  Qe7 {[%clk 0:02:06]} 30. Rae1 {[%clk 0:02:01]}  Kg8 {[%clk 0:02:01]} 31. d6 {[%clk 0:01:57]}  Qf7 {[%clk 0:02:00]} 32. Ng5 {[%clk 0:01:50]}  Nxg5 {[%clk 0:01:59]} 33. Qxg5 {[%clk 0:01:51]}  hxg4 {[%clk 0:01:59]} 34. hxg4 {[%clk 0:01:50]}  Bc6 {[%clk 0:01:56]} 35. Re7 {[%clk 0:01:49]}  Qa2+ {[%clk 0:01:30]} 36. Kg3 {[%clk 0:01:49]}  Qb2 {[%clk 0:01:28]} 37. Qe5 {[%clk 0:01:36]} 1-0


[Site "https://www.chess.com"]

[Event "Titled Tuesday Blitz May 24 Early 2022"]
[White "Ozkan, Ervin"]
[Black "Fernandez Siles, Luis"]
[WhiteFideId "6306004"]
[BlackFideId "2209420"]
[WhiteElo "2226"]
[BlackElo "2212"]
[Result "1-0"]
[Round "02"]
[TimeControl "180+1"]
[Date "2022.05.25"]
[WhiteClock "0:01:06"]
[BlackClock "0:00:09"]

1. d4 {[%clk 0:03:00]}  Nf6 {[%clk 0:02:58]} 2. Bf4 {[%clk 0:03:00]}  g6 {[%clk 0:02:57]} 3. e3 {[%clk 0:03:00]}  Bg7 {[%clk 0:02:57]} 4. Nf3 {[%clk 0:03:01]}  O-O {[%clk 0:02:56]} 5. h3 {[%clk 0:03:02]}  d6 {[%clk 0:02:56]} 6. Be2 {[%clk 0:03:02]}  c5 {[%clk 0:02:56]} 7. c3 {[%clk 0:03:02]}  Nc6 {[%clk 0:02:56]} 8. Nbd2 {[%clk 0:03:01]}  Be6 {[%clk 0:02:55]} 9. dxc5 {[%clk 0:03:01]}  dxc5 {[%clk 0:02:54]} 10. Qc2 {[%clk 0:03:01]}  Qd5 {[%clk 0:02:37]} 11. e4 {[%clk 0:02:59]}  Qd7 {[%clk 0:02:27]} 12. O-O {[%clk 0:02:56]}  Rad8 {[%clk 0:02:23]} 13. Ng5 {[%clk 0:02:40]}  h6 {[%clk 0:02:16]} 14. Nxe6 {[%clk 0:02:40]}  Qxe6 {[%clk 0:02:17]} 15. Bc4 {[%clk 0:02:31]}  Qd7 {[%clk 0:02:08]} 16. Rad1 {[%clk 0:02:27]}  e5 {[%clk 0:02:07]} 17. Bh2 {[%clk 0:02:23]}  Qe7 {[%clk 0:02:05]} 18. Rfe1 {[%clk 0:02:09]}  Nh5 {[%clk 0:01:42]} 19. Nf1 {[%clk 0:02:05]}  Nf4 {[%clk 0:01:38]} 20. Ne3 {[%clk 0:02:05]}  Qg5 {[%clk 0:01:29]} 21. Bg3 {[%clk 0:01:46]}  h5 {[%clk 0:01:25]} 22. h4 {[%clk 0:01:46]}  Qf6 {[%clk 0:01:20]} 23. Nd5 {[%clk 0:01:45]}  Rxd5 {[%clk 0:00:50]} 24. exd5 {[%clk 0:01:34]}  Ne7 {[%clk 0:00:46]} 25. d6 {[%clk 0:01:31]}  Nf5 {[%clk 0:00:46]} 26. Bxf4 {[%clk 0:01:29]}  exf4 {[%clk 0:00:45]} 27. d7 {[%clk 0:01:25]}  Qxh4 {[%clk 0:00:36]} 28. Qe4 {[%clk 0:01:21]}  Kh7 {[%clk 0:00:21]} 29. Qe8 {[%clk 0:01:13]}  Nh6 {[%clk 0:00:20]} 30. d8=Q {[%clk 0:01:08]}  Rxe8 {[%clk 0:00:09]} 31. Qxh4 {[%clk 0:01:06]} 1-0


[Site "https://www.chess.com"]

[Event "Titled Tuesday Blitz May 24 Early 2022"]
[White "Pein, Jonathan"]
[Black "Papasimakopoulos, Alexandros"]
[WhiteFideId "417092"]
[BlackFideId "4244125"]
[WhiteElo "2140"]
[BlackElo "2340"]
[Result "1-0"]
[Round "02"]
[TimeControl "180+1"]
[Date "2022.05.25"]
[WhiteClock "0:01:24"]
[BlackClock "0:00:07"]

1. e4 {[%clk 0:02:59]}  e6 {[%clk 0:02:56]} 2. b3 {[%clk 0:02:58]}  d5 {[%clk 0:02:56]} 3. Bb2 {[%clk 0:02:59]}  Nf6 {[%clk 0:02:55]} 4. e5 {[%clk 0:02:59]}  Nfd7 {[%clk 0:02:55]} 5. f4 {[%clk 0:02:59]}  c5 {[%clk 0:02:55]} 6. Qg4 {[%clk 0:03:00]}  Nc6 {[%clk 0:02:54]} 7. Nf3 {[%clk 0:03:00]}  g6 {[%clk 0:02:47]} 8. Be2 {[%clk 0:03:00]}  a6 {[%clk 0:02:43]} 9. O-O {[%clk 0:02:59]}  b5 {[%clk 0:02:44]} 10. c4 {[%clk 0:02:57]}  bxc4 {[%clk 0:02:39]} 11. bxc4 {[%clk 0:02:57]}  Nb6 {[%clk 0:02:35]} 12. cxd5 {[%clk 0:02:56]}  exd5 {[%clk 0:02:36]} 13. Qg3 {[%clk 0:02:51]}  Be6 {[%clk 0:02:32]} 14. Ng5 {[%clk 0:02:52]}  Ne7 {[%clk 0:01:58]} 15. Nc3 {[%clk 0:02:45]}  Nf5 {[%clk 0:01:55]} 16. Qf2 {[%clk 0:02:40]}  h5 {[%clk 0:01:39]} 17. Kh1 {[%clk 0:02:41]}  Be7 {[%clk 0:01:37]} 18. Nxe6 {[%clk 0:02:22]}  fxe6 {[%clk 0:01:36]} 19. Bd3 {[%clk 0:02:19]}  Kf7 {[%clk 0:01:19]} 20. Nd1 {[%clk 0:02:18]}  Na4 {[%clk 0:01:15]} 21. Bc3 {[%clk 0:02:11]}  h4 {[%clk 0:00:59]} 22. Qf3 {[%clk 0:02:04]}  c4 {[%clk 0:00:40]} 23. Bc2 {[%clk 0:02:00]}  Nxc3 {[%clk 0:00:33]} 24. Nxc3 {[%clk 0:02:01]}  Ng3+ {[%clk 0:00:29]} 25. Kg1 {[%clk 0:01:57]}  Bc5+ {[%clk 0:00:29]} 26. Rf2 {[%clk 0:01:55]}  Nf5 {[%clk 0:00:25]} 27. h3 {[%clk 0:01:38]}  Rb8 {[%clk 0:00:25]} 28. Kh2 {[%clk 0:01:36]}  Bxf2 {[%clk 0:00:25]} 29. Qxf2 {[%clk 0:01:37]}  Qb6 {[%clk 0:00:25]} 30. Qe2 {[%clk 0:01:35]}  Qd4 {[%clk 0:00:25]} 31. Qg4 {[%clk 0:01:34]}  Rb2 {[%clk 0:00:24]} 32. Bxf5 {[%clk 0:01:32]}  gxf5 {[%clk 0:00:18]} 33. Qg5 {[%clk 0:01:32]}  Qxd2 {[%clk 0:00:12]} 34. Qf6+ {[%clk 0:01:32]}  Ke8 {[%clk 0:00:12]} 35. Qxe6+ {[%clk 0:01:33]}  Kd8 {[%clk 0:00:12]} 36. Qf6+ {[%clk 0:01:32]}  Kc7 {[%clk 0:00:12]} 37. Qd6+ {[%clk 0:01:32]}  Kb7 {[%clk 0:00:13]} 38. Qd7+ {[%clk 0:01:32]}  Ka8 {[%clk 0:00:12]} 39. Qc6+ {[%clk 0:01:32]}  Ka7 {[%clk 0:00:12]} 40. Qc7+ {[%clk 0:01:29]}  Rb7 {[%clk 0:00:11]} 41. Qc5+ {[%clk 0:01:29]}  Ka8 {[%clk 0:00:12]} 42. Nxd5 {[%clk 0:01:30]}  Rg8 {[%clk 0:00:09]} 43. Rg1 {[%clk 0:01:23]}  Qb2 {[%clk 0:00:08]} 44. Nc7+ {[%clk 0:01:23]}  Rxc7 {[%clk 0:00:08]} 45. Qxc7 {[%clk 0:01:24]}  Qb7 {[%clk 0:00:08]} 46. Qxc4 {[%clk 0:01:24]}  Qe4 {[%clk 0:00:09]} 47. Qxg8+ {[%clk 0:01:24]}  Ka7 {[%clk 0:00:08]} 48. Qg7+ {[%clk 0:01:23]}  Kb6 {[%clk 0:00:09]} 49. Qh6+ {[%clk 0:01:22]}  Ka5 {[%clk 0:00:09]} 50. Qxh4 {[%clk 0:01:23]}  Ka4 {[%clk 0:00:08]} 51. Qg3 {[%clk 0:01:24]}  Ka5 {[%clk 0:00:07]} 52. Re1 {[%clk 0:01:24]}  Qb4 {[%clk 0:00:07]} 53. e6 {[%clk 0:01:24]}  Qxe1 {[%clk 0:00:07]} 54. Qxe1+ {[%clk 0:01:24]} 1-0


[Site "https://www.chess.com"]